[Event "Early-Titled-Tuesday-Blitz-March-05-2024"]
[Site "Chess.com"]
[Date "2024.03.05"]
[Round "2"]
[White "Herzog2012"]
[Black "GAusal"]
[Result "1/2-1/2"]
[WhiteElo "2508"]
[BlackElo "2311"]
[TimeControl "180+1"]
[EndTime "8:17:46 PST"]
[Termination "Game drawn by repetition"]

1. e4 {[%clk 0:03:00.9]} 1... e5 {[%clk 0:02:57.9]} 2. Nf3 {[%clk 0:02:58.3]}
2... Nc6 {[%clk 0:02:58]} 3. d4 {[%clk 0:02:58.3]} 3... d6 {[%clk 0:02:56.3]} 4.
Bc4 {[%clk 0:02:47.7]} 4... Nf6 {[%clk 0:02:51.9]} 5. Nc3 {[%clk 0:02:46.8]}
5... Bg4 {[%clk 0:02:47.4]} 6. dxe5 {[%clk 0:02:12.1]} 6... dxe5 {[%clk
0:02:42.6]} 7. Qxd8+ {[%clk 0:01:56.6]} 7... Rxd8 {[%clk 0:02:41.1]} 8. Bg5
{[%clk 0:01:57.2]} 8... h6 {[%clk 0:02:33.2]} 9. Bxf6 {[%clk 0:01:56.1]} 9...
gxf6 {[%clk 0:02:32]} 10. Nd5 {[%clk 0:01:56.3]} 10... Bxf3 {[%clk 0:02:25.8]}
11. gxf3 {[%clk 0:01:52.7]} 11... Be7 {[%clk 0:02:10.9]} 12. Nxc7+ {[%clk
0:01:48.6]} 12... Kf8 {[%clk 0:02:05.9]} 13. c3 {[%clk 0:01:39.9]} 13... f5
{[%clk 0:02:01.5]} 14. exf5 {[%clk 0:01:37]} 14... Na5 {[%clk 0:01:54.2]} 15.
Be2 {[%clk 0:01:21.9]} 15... Rd7 {[%clk 0:01:49.1]} 16. Nb5 {[%clk 0:01:21.5]}
16... a6 {[%clk 0:01:45.4]} 17. Na3 {[%clk 0:01:12.1]} 17... Bxa3 {[%clk
0:01:42.7]} 18. bxa3 {[%clk 0:01:13]} 18... Ke7 {[%clk 0:01:37.9]} 19. Rd1
{[%clk 0:01:09]} 19... Rhd8 {[%clk 0:01:35.7]} 20. Rxd7+ {[%clk 0:01:01.4]}
20... Rxd7 {[%clk 0:01:35.3]} 21. Rg1 {[%clk 0:01:00.1]} 21... Kf6 {[%clk
0:01:34.1]} 22. Rg8 {[%clk 0:00:54.8]} 22... Rc7 {[%clk 0:01:26.5]} 23. Kd2
{[%clk 0:00:50.7]} 23... Nc4+ {[%clk 0:01:21.3]} 24. Bxc4 {[%clk 0:00:48.8]}
24... Rxc4 {[%clk 0:01:20.7]} 25. Rg4 {[%clk 0:00:46]} 25... Rc7 {[%clk
0:01:16.5]} 26. f4 {[%clk 0:00:34]} 26... e4 {[%clk 0:01:09.1]} 27. Rh4 {[%clk
0:00:32.8]} 27... Kxf5 {[%clk 0:01:05.3]} 28. Rxh6 {[%clk 0:00:29.9]} 28... Kxf4
{[%clk 0:01:04.7]} 29. h4 {[%clk 0:00:28.1]} 29... f5 {[%clk 0:01:03.6]} 30. h5
{[%clk 0:00:20.5]} 30... Kf3 {[%clk 0:01:01.7]} 31. Rf6 {[%clk 0:00:20.5]} 31...
f4 {[%clk 0:00:56.5]} 32. h6 {[%clk 0:00:20.9]} 32... Rd7+ {[%clk 0:00:53.4]}
33. Ke1 {[%clk 0:00:18.2]} 33... Rc7 {[%clk 0:00:50.1]} 34. Kd2 {[%clk
0:00:10.1]} 34... Rd7+ {[%clk 0:00:48.3]} 35. Ke1 {[%clk 0:00:10.2]} 35... Rc7
{[%clk 0:00:48]} 36. Kd2 {[%clk 0:00:06.6]} 1/2-1/2

[Event "Early-Titled-Tuesday-Blitz-March-05-2024"]
[Site "Chess.com"]
[Date "2024.03.05"]
[Round "2"]
[White "AwareIdea"]
[Black "Willi_Skibbe"]
[Result "1-0"]
[WhiteElo "2523"]
[BlackElo "2313"]
[TimeControl "180+1"]
[EndTime "8:17:50 PST"]
[Termination "AwareIdea won by resignation"]

1. d4 {[%clk 0:02:57.5]} 1... d5 {[%clk 0:02:55.6]} 2. Bf4 {[%clk 0:02:56.6]}
2... Nf6 {[%clk 0:02:53.9]} 3. e3 {[%clk 0:02:56.8]} 3... c5 {[%clk 0:02:50]} 4.
Nc3 {[%clk 0:02:55.8]} 4... a6 {[%clk 0:02:48.7]} 5. Qd2 {[%clk 0:02:48.7]} 5...
e6 {[%clk 0:02:34.1]} 6. Nf3 {[%clk 0:02:46.9]} 6... b5 {[%clk 0:02:31.2]} 7.
dxc5 {[%clk 0:02:41.8]} 7... Bxc5 {[%clk 0:02:30.7]} 8. a3 {[%clk 0:02:42.3]}
8... Bb7 {[%clk 0:02:29.5]} 9. Be2 {[%clk 0:02:41.6]} 9... Nbd7 {[%clk 0:02:29]}
10. Ne5 {[%clk 0:02:41.4]} 10... O-O {[%clk 0:02:26.9]} 11. Nxd7 {[%clk
0:02:41.1]} 11... Nxd7 {[%clk 0:02:25.1]} 12. O-O {[%clk 0:02:39.1]} 12... Nb6
{[%clk 0:02:21]} 13. Bd3 {[%clk 0:02:33.7]} 13... Nc4 {[%clk 0:02:19.6]} 14. Qc1
{[%clk 0:02:33.8]} 14... e5 {[%clk 0:01:35.2]} 15. Bxc4 {[%clk 0:02:32.1]} 15...
exf4 {[%clk 0:01:34.9]} 16. Bxd5 {[%clk 0:02:31.5]} 16... Bxd5 {[%clk 0:01:34]}
17. Rd1 {[%clk 0:02:31.1]} 17... fxe3 {[%clk 0:01:31.3]} 18. Rxd5 {[%clk
0:02:11]} 18... exf2+ {[%clk 0:01:29.4]} 19. Kf1 {[%clk 0:02:11]} 19... Qe7
{[%clk 0:01:13]} 20. Qg5 {[%clk 0:01:56.3]} 20... Qxg5 {[%clk 0:01:12.3]} 21.
Rxg5 {[%clk 0:01:56.1]} 21... Bd4 {[%clk 0:01:05.5]} 22. Rd5 {[%clk 0:01:53.2]}
22... Rfd8 {[%clk 0:00:43.6]} 23. Rxd8+ {[%clk 0:01:52.2]} 23... Rxd8 {[%clk
0:00:43.7]} 24. Rd1 {[%clk 0:01:53.1]} 24... f5 {[%clk 0:00:41.8]} 25. Ne2
{[%clk 0:01:48.1]} 25... Bb6 {[%clk 0:00:40.9]} 26. Rxd8+ {[%clk 0:01:48]} 26...
Bxd8 {[%clk 0:00:41.8]} 27. Kxf2 {[%clk 0:01:48.7]} 27... Bf6 {[%clk 0:00:41.6]}
28. b3 {[%clk 0:01:48.2]} 28... Be5 {[%clk 0:00:29.1]} 29. h3 {[%clk 0:01:47.6]}
29... Kf7 {[%clk 0:00:27.7]} 30. Ke3 {[%clk 0:01:46.7]} 30... g5 {[%clk
0:00:25.4]} 31. c4 {[%clk 0:01:46]} 31... Bb2 {[%clk 0:00:20.6]} 32. a4 {[%clk
0:01:44.5]} 32... bxa4 {[%clk 0:00:20.7]} 33. bxa4 {[%clk 0:01:45.4]} 33... Ke6
{[%clk 0:00:21.2]} 34. Kd3 {[%clk 0:01:39.8]} 34... f4 {[%clk 0:00:21]} 35. Nd4+
{[%clk 0:01:22.8]} 35... Ke5 {[%clk 0:00:20.1]} 36. Nc6+ {[%clk 0:01:19.1]}
36... Kf6 {[%clk 0:00:19.9]} 37. Nb4 {[%clk 0:01:18.9]} 37... h5 {[%clk
0:00:13.3]} 38. Nxa6 {[%clk 0:01:15.9]} 38... Kf5 {[%clk 0:00:12.8]} 39. Nc5
{[%clk 0:01:09]} 39... g4 {[%clk 0:00:11.9]} 40. hxg4+ {[%clk 0:01:09.9]} 40...
Kxg4 {[%clk 0:00:12]} 41. Ne4 {[%clk 0:01:09.2]} 41... f3 {[%clk 0:00:11.9]} 42.
gxf3+ {[%clk 0:01:06.1]} 42... Kxf3 {[%clk 0:00:12.8]} 43. c5 {[%clk 0:01:04.3]}
43... Be5 {[%clk 0:00:10.9]} 44. a5 {[%clk 0:01:03.8]} 44... Bc7 {[%clk
0:00:10.7]} 45. a6 {[%clk 0:01:03.7]} 45... h4 {[%clk 0:00:10.3]} 46. a7 {[%clk
0:01:02.2]} 1-0

[Event "Early-Titled-Tuesday-Blitz-March-05-2024"]
[Site "Chess.com"]
[Date "2024.03.05"]
[Round "2"]
[White "Leonid_Starozhilov"]
[Black "Chessbard1972"]
[Result "1-0"]
[WhiteElo "2710"]
[BlackElo "2445"]
[TimeControl "180+1"]
[EndTime "8:17:52 PST"]
[Termination "Leonid_Starozhilov won by resignation"]

1. e4 {[%clk 0:03:00.9]} 1... c5 {[%clk 0:02:58.7]} 2. Nf3 {[%clk 0:02:57.7]}
2... a6 {[%clk 0:02:58.1]} 3. c4 {[%clk 0:02:57.5]} 3... e6 {[%clk 0:02:57.7]}
4. Nc3 {[%clk 0:02:58.4]} 4... Qc7 {[%clk 0:02:56.6]} 5. d4 {[%clk 0:02:58.6]}
5... cxd4 {[%clk 0:02:56.9]} 6. Nxd4 {[%clk 0:02:59.5]} 6... Nf6 {[%clk
0:02:57.3]} 7. a3 {[%clk 0:02:59.8]} 7... b6 {[%clk 0:02:57.2]} 8. Be3 {[%clk
0:02:58.1]} 8... Bb7 {[%clk 0:02:58.1]} 9. f3 {[%clk 0:02:58.8]} 9... Nc6 {[%clk
0:02:57.5]} 10. Rc1 {[%clk 0:02:58.4]} 10... Ne5 {[%clk 0:02:57.7]} 11. Be2
{[%clk 0:02:53.7]} 11... Ng6 {[%clk 0:02:49.8]} 12. b4 {[%clk 0:02:43.3]} 12...
h5 {[%clk 0:02:48.7]} 13. Nb3 {[%clk 0:02:35]} 13... h4 {[%clk 0:02:41.1]} 14.
c5 {[%clk 0:02:33]} 14... bxc5 {[%clk 0:02:36.3]} 15. Nxc5 {[%clk 0:02:23.9]}
15... d6 {[%clk 0:02:18.5]} 16. Nxb7 {[%clk 0:02:12.5]} 16... Qxb7 {[%clk
0:02:18.2]} 17. Qa4+ {[%clk 0:02:09.9]} 17... Nd7 {[%clk 0:02:12.9]} 18. b5
{[%clk 0:01:59.9]} 18... axb5 {[%clk 0:01:56.8]} 19. Qxb5 {[%clk 0:02:00.8]}
19... Rb8 {[%clk 0:01:39.8]} 20. Qxb7 {[%clk 0:01:56.5]} 20... Rxb7 {[%clk
0:01:39.7]} 21. Nb5 {[%clk 0:01:50.9]} 21... Nc5 {[%clk 0:01:29.4]} 22. Kf2
{[%clk 0:01:40.3]} 22... Ne5 {[%clk 0:01:23.5]} 23. Rhd1 {[%clk 0:01:30.6]}
23... Rd7 {[%clk 0:01:16.9]} 24. Nd4 {[%clk 0:01:02.7]} 24... Be7 {[%clk
0:01:13.2]} 25. Bb5 {[%clk 0:00:59.4]} 25... O-O {[%clk 0:01:08.8]} 26. Bxd7
{[%clk 0:00:59.3]} 26... Ncd3+ {[%clk 0:01:05.7]} 27. Ke2 {[%clk 0:00:59.2]}
27... Nxc1+ {[%clk 0:01:05.1]} 28. Rxc1 {[%clk 0:00:59.8]} 28... Nxd7 {[%clk
0:01:04.6]} 29. Rc7 {[%clk 0:01:00.3]} 29... Nc5 {[%clk 0:00:44.5]} 30. Rxe7
{[%clk 0:00:59.2]} 30... Ra8 {[%clk 0:00:44.5]} 31. Nb5 {[%clk 0:00:58]} 31...
Ra5 {[%clk 0:00:44.3]} 32. Bxc5 {[%clk 0:00:57.6]} 32... dxc5 {[%clk 0:00:38.7]}
33. Rb7 {[%clk 0:00:45]} 33... g5 {[%clk 0:00:32.1]} 34. h3 {[%clk 0:00:44.9]}
34... f5 {[%clk 0:00:30.2]} 35. exf5 {[%clk 0:00:43.7]} 35... exf5 {[%clk
0:00:30]} 36. Kd3 {[%clk 0:00:43.9]} 36... Ra4 {[%clk 0:00:29.3]} 37. Ra7 {[%clk
0:00:33.4]} 37... g4 {[%clk 0:00:18]} 38. Rxa4 {[%clk 0:00:32.2]} 1-0

[Event "Early-Titled-Tuesday-Blitz-March-05-2024"]
[Site "Chess.com"]
[Date "2024.03.05"]
[Round "2"]
[White "ZuraTqebuchava"]
[Black "Mesa_1"]
[Result "0-1"]
[WhiteElo "2250"]
[BlackElo "2490"]
[TimeControl "180+1"]
[EndTime "8:17:55 PST"]
[Termination "Mesa_1 won by checkmate"]

1. e4 {[%clk 0:02:55.2]} 1... g6 {[%clk 0:03:00.9]} 2. d4 {[%clk 0:02:48.9]}
2... Bg7 {[%clk 0:03:01.5]} 3. Nc3 {[%clk 0:02:49.2]} 3... d6 {[%clk 0:03:01.9]}
4. g3 {[%clk 0:02:49.6]} 4... Nc6 {[%clk 0:03:01.1]} 5. d5 {[%clk 0:02:43.4]}
5... Nd4 {[%clk 0:02:52.4]} 6. Be3 {[%clk 0:02:40.9]} 6... c5 {[%clk 0:02:51.1]}
7. Bg2 {[%clk 0:02:38.3]} 7... Nf6 {[%clk 0:02:48.5]} 8. h3 {[%clk 0:02:37.3]}
8... O-O {[%clk 0:02:47.7]} 9. Nge2 {[%clk 0:02:37.1]} 9... Nxe2 {[%clk
0:02:35.7]} 10. Qxe2 {[%clk 0:02:34.9]} 10... Rb8 {[%clk 0:02:36.6]} 11. a4
{[%clk 0:02:28.9]} 11... Nd7 {[%clk 0:02:33.4]} 12. O-O {[%clk 0:02:26.7]} 12...
a6 {[%clk 0:02:32.5]} 13. a5 {[%clk 0:02:25.1]} 13... b5 {[%clk 0:02:32.2]} 14.
Qd2 {[%clk 0:02:08.3]} 14... Ne5 {[%clk 0:02:29.3]} 15. b3 {[%clk 0:02:00]}
15... Bxh3 {[%clk 0:02:25.4]} 16. Bf4 {[%clk 0:01:25.9]} 16... Bxg2 {[%clk
0:02:20.6]} 17. Kxg2 {[%clk 0:01:26.1]} 17... b4 {[%clk 0:02:13.7]} 18. Ne2
{[%clk 0:01:20.1]} 18... Qd7 {[%clk 0:02:10.4]} 19. Bh6 {[%clk 0:01:11.4]} 19...
e6 {[%clk 0:01:45.1]} 20. Rh1 {[%clk 0:01:03.8]} 20... Ng4 {[%clk 0:01:11.2]}
21. Bxg7 {[%clk 0:01:01.1]} 21... Kxg7 {[%clk 0:01:12.1]} 22. Qf4 {[%clk
0:00:57.2]} 22... f5 {[%clk 0:01:06.4]} 23. dxe6 {[%clk 0:00:48.9]} 23... Qc6
{[%clk 0:00:55.4]} 24. Rad1 {[%clk 0:00:36.2]} 24... Qxe4+ {[%clk 0:00:49.8]}
25. Qxe4 {[%clk 0:00:36.1]} 25... fxe4 {[%clk 0:00:50.7]} 26. Nf4 {[%clk
0:00:36.3]} 26... g5 {[%clk 0:00:38]} 27. Nh5+ {[%clk 0:00:35.1]} 27... Kg6
{[%clk 0:00:38.1]} 28. e7 {[%clk 0:00:23.5]} 28... Rxf2+ {[%clk 0:00:35.9]} 29.
Kh3 {[%clk 0:00:23.7]} 29... Kxh5 {[%clk 0:00:35.8]} 30. Rxd6 {[%clk 0:00:23.3]}
30... Re8 {[%clk 0:00:27]} 31. Rd7 {[%clk 0:00:22.7]} 31... e3 {[%clk
0:00:21.8]} 32. Re1 {[%clk 0:00:22.1]} 32... Rh2# {[%clk 0:00:20]} 0-1

[Event "Early-Titled-Tuesday-Blitz-March-05-2024"]
[Site "Chess.com"]
[Date "2024.03.05"]
[Round "2"]
[White "ilqar_74"]
[Black "janhelmer03"]
[Result "1-0"]
[WhiteElo "2837"]
[BlackElo "2409"]
[TimeControl "180+1"]
[EndTime "8:17:56 PST"]
[Termination "ilqar_74 won on time"]

1. e4 {[%clk 0:03:00.9]} 1... c5 {[%clk 0:02:59.6]} 2. Nf3 {[%clk 0:02:59.9]}
2... d6 {[%clk 0:02:59.5]} 3. d4 {[%clk 0:02:55]} 3... cxd4 {[%clk 0:02:59.5]}
4. Nxd4 {[%clk 0:02:55.9]} 4... Nf6 {[%clk 0:03:00]} 5. Nc3 {[%clk 0:02:43.7]}
5... g6 {[%clk 0:02:59.8]} 6. f3 {[%clk 0:02:43.1]} 6... Bg7 {[%clk 0:02:59.7]}
7. Be3 {[%clk 0:02:43.7]} 7... O-O {[%clk 0:02:59.3]} 8. Qd2 {[%clk 0:02:44.2]}
8... Nc6 {[%clk 0:02:59.4]} 9. O-O-O {[%clk 0:02:44.7]} 9... d5 {[%clk
0:02:59.2]} 10. exd5 {[%clk 0:02:44.8]} 10... Nxd5 {[%clk 0:02:56.7]} 11. Nxc6
{[%clk 0:02:44.8]} 11... bxc6 {[%clk 0:02:07.1]} 12. Bd4 {[%clk 0:02:44.1]}
12... e5 {[%clk 0:02:04.9]} 13. Bc5 {[%clk 0:02:42.6]} 13... Re8 {[%clk
0:02:04.1]} 14. Ne4 {[%clk 0:02:41.8]} 14... Qc7 {[%clk 0:02:00.3]} 15. h4
{[%clk 0:02:41]} 15... f5 {[%clk 0:01:58.2]} 16. Nd6 {[%clk 0:02:40.1]} 16...
Rd8 {[%clk 0:01:58.5]} 17. Nxc8 {[%clk 0:02:40.2]} 17... Raxc8 {[%clk
0:01:57.6]} 18. Bc4 {[%clk 0:02:40.8]} 18... e4 {[%clk 0:01:13.9]} 19. fxe4
{[%clk 0:02:40]} 19... Qe5 {[%clk 0:01:13.2]} 20. Bd4 {[%clk 0:02:29.3]} 20...
Qxd4 {[%clk 0:01:13.2]} 21. Qxd4 {[%clk 0:02:28.9]} 21... Bxd4 {[%clk
0:01:14.1]} 22. Rxd4 {[%clk 0:02:29.6]} 22... fxe4 {[%clk 0:01:13.6]} 23. Rxe4
{[%clk 0:02:29.9]} 23... Kg7 {[%clk 0:00:48.9]} 24. h5 {[%clk 0:02:25.9]} 24...
Re8 {[%clk 0:00:44.2]} 25. Bxd5 {[%clk 0:02:13.2]} 25... cxd5 {[%clk 0:00:43.7]}
26. Rd4 {[%clk 0:02:13.8]} 26... Re2 {[%clk 0:00:42.9]} 27. Rd2 {[%clk
0:02:13.8]} 27... Rce8 {[%clk 0:00:33.4]} 28. hxg6 {[%clk 0:02:11.4]} 28... Kxg6
{[%clk 0:00:26]} 29. b3 {[%clk 0:02:10.2]} 29... Re1+ {[%clk 0:00:25]} 30. Rxe1
{[%clk 0:02:09.5]} 30... Rxe1+ {[%clk 0:00:25.9]} 31. Kb2 {[%clk 0:02:10.1]}
31... Re5 {[%clk 0:00:25.5]} 32. c4 {[%clk 0:02:09.7]} 32... dxc4 {[%clk
0:00:25.3]} 33. bxc4 {[%clk 0:02:10.6]} 33... Kg5 {[%clk 0:00:25.4]} 34. Kc3
{[%clk 0:02:10.7]} 34... Kg4 {[%clk 0:00:25.3]} 35. Rd7 {[%clk 0:02:01.3]} 35...
Ra5 {[%clk 0:00:21.1]} 36. Rxh7 {[%clk 0:01:31.2]} 36... Rxa2 {[%clk 0:00:20.6]}
37. c5 {[%clk 0:01:31.8]} 37... Ra1 {[%clk 0:00:10.2]} 38. Kc4 {[%clk
0:01:26.7]} 38... Rc1+ {[%clk 0:00:07.4]} 39. Kd5 {[%clk 0:01:26.7]} 39... a5
{[%clk 0:00:07.5]} 40. Ra7 {[%clk 0:01:26]} 40... Rd1+ {[%clk 0:00:06.6]} 41.
Kc6 {[%clk 0:01:26.2]} 41... Ra1 {[%clk 0:00:06.8]} 42. Kd6 {[%clk 0:01:25.2]}
42... Kg3 {[%clk 0:00:04.4]} 43. c6 {[%clk 0:01:25.1]} 43... Kxg2 {[%clk
0:00:04]} 44. c7 {[%clk 0:01:23.9]} 44... Rd1+ {[%clk 0:00:04.4]} 45. Ke7 {[%clk
0:01:22.9]} 45... Rc1 {[%clk 0:00:04.2]} 46. Kd8 {[%clk 0:01:23.2]} 46... Rd1+
{[%clk 0:00:04.6]} 47. Kc8 {[%clk 0:01:23.9]} 47... Ra1 {[%clk 0:00:02.6]} 48.
Kb8 {[%clk 0:01:24.1]} 48... Rb1+ {[%clk 0:00:02.9]} 49. Rb7 {[%clk 0:01:24.7]}
49... Rc1 {[%clk 0:00:01.6]} 50. c8=R {[%clk 0:01:23.8]} 1-0

[Event "Early-Titled-Tuesday-Blitz-March-05-2024"]
[Site "Chess.com"]
[Date "2024.03.05"]
[Round "2"]
[White "balack95"]
[Black "Alenzer"]
[Result "1-0"]
[WhiteElo "2463"]
[BlackElo "2172"]
[TimeControl "180+1"]
[EndTime "8:17:56 PST"]
[Termination "balack95 won on time"]

1. d4 {[%clk 0:03:00.9]} 1... d5 {[%clk 0:02:58.4]} 2. c4 {[%clk 0:03:01.3]}
2... dxc4 {[%clk 0:02:56.4]} 3. e3 {[%clk 0:02:59.1]} 3... e5 {[%clk 0:02:46.4]}
4. Bxc4 {[%clk 0:02:58.4]} 4... exd4 {[%clk 0:02:44.4]} 5. Nf3 {[%clk 0:02:59]}
5... Nf6 {[%clk 0:02:42.2]} 6. O-O {[%clk 0:02:58]} 6... Bd6 {[%clk 0:02:40.4]}
7. exd4 {[%clk 0:02:58.1]} 7... O-O {[%clk 0:02:40.1]} 8. Nc3 {[%clk 0:02:58.5]}
8... Bg4 {[%clk 0:02:39.6]} 9. Bg5 {[%clk 0:02:58.9]} 9... h6 {[%clk 0:02:38.4]}
10. Bh4 {[%clk 0:02:59]} 10... Nbd7 {[%clk 0:02:38.1]} 11. Ne4 {[%clk
0:02:57.4]} 11... Be7 {[%clk 0:02:35.1]} 12. Ned2 {[%clk 0:02:50.7]} 12... c6
{[%clk 0:02:31.9]} 13. h3 {[%clk 0:02:50.7]} 13... Bh5 {[%clk 0:02:25.3]} 14. a4
{[%clk 0:02:50.8]} 14... Nb6 {[%clk 0:02:19]} 15. Bb3 {[%clk 0:02:50.1]} 15...
Nbd5 {[%clk 0:02:16.6]} 16. Re1 {[%clk 0:02:49.4]} 16... Re8 {[%clk 0:02:14.8]}
17. Qc2 {[%clk 0:02:49.4]} 17... Bg6 {[%clk 0:02:09.4]} 18. Qc4 {[%clk
0:02:43.3]} 18... Nb6 {[%clk 0:01:51.6]} 19. Qf1 {[%clk 0:02:41.7]} 19... Nbd5
{[%clk 0:01:36]} 20. Ne5 {[%clk 0:02:41.6]} 20... Bh7 {[%clk 0:01:25.6]} 21. Qc4
{[%clk 0:02:40.7]} 21... g5 {[%clk 0:01:15]} 22. Bg3 {[%clk 0:02:38.4]} 22...
Bd6 {[%clk 0:01:13]} 23. a5 {[%clk 0:02:36]} 23... Nh5 {[%clk 0:01:08.9]} 24.
Ne4 {[%clk 0:02:23]} 24... Nxg3 {[%clk 0:01:03.5]} 25. Nxg3 {[%clk 0:02:18.6]}
25... Qf6 {[%clk 0:00:55.7]} 26. a6 {[%clk 0:02:10.6]} 26... bxa6 {[%clk
0:00:40.3]} 27. Nxc6 {[%clk 0:02:05.6]} 27... Nf4 {[%clk 0:00:28.1]} 28. Ne5
{[%clk 0:02:01.8]} 28... Bg6 {[%clk 0:00:18.9]} 29. Rxa6 {[%clk 0:01:51.5]}
29... Rad8 {[%clk 0:00:13.3]} 30. Rxa7 {[%clk 0:01:49.4]} 30... Bxe5 {[%clk
0:00:13.2]} 31. dxe5 {[%clk 0:01:49.6]} 31... Rxe5 {[%clk 0:00:12.8]} 32. Rea1
{[%clk 0:01:37.4]} 32... Rf8 {[%clk 0:00:09.3]} 33. R7a6 {[%clk 0:01:29.1]}
33... Qe7 {[%clk 0:00:08.4]} 34. Kh2 {[%clk 0:01:28.2]} 34... Ne6 {[%clk
0:00:06.8]} 35. Qc3 {[%clk 0:01:22.6]} 35... Rc5 {[%clk 0:00:06]} 36. Qe3 {[%clk
0:01:14.4]} 36... Rc7 {[%clk 0:00:05.9]} 37. Bxe6 {[%clk 0:01:12.2]} 37... fxe6
{[%clk 0:00:06]} 38. Rxe6 {[%clk 0:01:10.8]} 38... Qf7 {[%clk 0:00:05.9]} 39.
Raa6 {[%clk 0:01:06.9]} 39... Bh7 {[%clk 0:00:03.7]} 40. f3 {[%clk 0:01:05.8]}
40... Rd7 {[%clk 0:00:03.2]} 41. Ne4 {[%clk 0:00:58.8]} 41... Rc7 {[%clk
0:00:02.1]} 42. Rf6 {[%clk 0:00:55.7]} 1-0

[Event "Early-Titled-Tuesday-Blitz-March-05-2024"]
[Site "Chess.com"]
[Date "2024.03.05"]
[Round "2"]
[White "wonderfultime"]
[Black "ProChessWICTH"]
[Result "1-0"]
[WhiteElo "3027"]
[BlackElo "2617"]
[TimeControl "180+1"]
[EndTime "8:17:57 PST"]
[Termination "wonderfultime won by resignation"]

1. d4 {[%clk 0:03:00.9]} 1... Nf6 {[%clk 0:02:59.7]} 2. Nf3 {[%clk 0:03:01]}
2... g6 {[%clk 0:02:59.6]} 3. c4 {[%clk 0:03:00.6]} 3... Bg7 {[%clk 0:02:59.7]}
4. g3 {[%clk 0:03:01.3]} 4... O-O {[%clk 0:02:59.6]} 5. Bg2 {[%clk 0:03:02]}
5... d5 {[%clk 0:03:00]} 6. cxd5 {[%clk 0:02:58.6]} 6... Nxd5 {[%clk 0:03:00.9]}
7. O-O {[%clk 0:02:57.1]} 7... Nc6 {[%clk 0:02:46.3]} 8. Nc3 {[%clk 0:02:56.3]}
8... Nb6 {[%clk 0:02:16.7]} 9. d5 {[%clk 0:02:55.3]} 9... Na5 {[%clk 0:02:14.9]}
10. Qc2 {[%clk 0:02:54.5]} 10... c6 {[%clk 0:02:11.3]} 11. dxc6 {[%clk
0:02:52.9]} 11... Nxc6 {[%clk 0:02:11.5]} 12. Rd1 {[%clk 0:02:53.5]} 12... Qe8
{[%clk 0:02:07.3]} 13. Qe4 {[%clk 0:02:45.3]} 13... Bf5 {[%clk 0:02:04.3]} 14.
Qh4 {[%clk 0:02:46]} 14... h5 {[%clk 0:01:51.2]} 15. h3 {[%clk 0:02:28.7]} 15...
Rd8 {[%clk 0:01:41.8]} 16. Be3 {[%clk 0:02:16.1]} 16... Rxd1+ {[%clk 0:01:35.5]}
17. Rxd1 {[%clk 0:02:17]} 17... Qc8 {[%clk 0:01:31.5]} 18. Ng5 {[%clk 0:01:15]}
18... Rd8 {[%clk 0:01:02.6]} 19. Rc1 {[%clk 0:01:11.4]} 19... Qd7 {[%clk
0:00:39.8]} 20. Rd1 {[%clk 0:01:03]} 20... Qc8 {[%clk 0:00:38.5]} 21. Rxd8+
{[%clk 0:01:01.5]} 21... Qxd8 {[%clk 0:00:39.4]} 22. g4 {[%clk 0:01:02.1]} 22...
Bc2 {[%clk 0:00:17.9]} 23. gxh5 {[%clk 0:01:02]} 23... gxh5 {[%clk 0:00:17.4]}
24. Qxh5 {[%clk 0:01:02.4]} 24... Bg6 {[%clk 0:00:17.5]} 25. Qh4 {[%clk
0:00:43.7]} 25... Nd4 {[%clk 0:00:11.8]} 26. Be4 {[%clk 0:00:39.8]} 26... Nf5
{[%clk 0:00:10.7]} 27. Qf4 {[%clk 0:00:34.2]} 27... Nxe3 {[%clk 0:00:07.3]} 28.
Bxg6 {[%clk 0:00:34.2]} 28... fxg6 {[%clk 0:00:07.1]} 29. Qf7+ {[%clk
0:00:34.6]} 29... Kh8 {[%clk 0:00:07.3]} 30. Qxg6 {[%clk 0:00:28.6]} 30... Kg8
{[%clk 0:00:07.8]} 31. Qe6+ {[%clk 0:00:27.7]} 1-0

[Event "Early-Titled-Tuesday-Blitz-March-05-2024"]
[Site "Chess.com"]
[Date "2024.03.05"]
[Round "2"]
[White "goldihouse"]
[Black "Aalessia"]
[Result "0-1"]
[WhiteElo "2660"]
[BlackElo "2393"]
[TimeControl "180+1"]
[EndTime "8:17:57 PST"]
[Termination "Aalessia won on time"]

1. c4 {[%clk 0:03:00]} 1... e6 {[%clk 0:02:56.7]} 2. g3 {[%clk 0:03:00.9]} 2...
d5 {[%clk 0:02:56.3]} 3. Bg2 {[%clk 0:03:01.4]} 3... Nf6 {[%clk 0:02:55.5]} 4.
Nf3 {[%clk 0:03:02.3]} 4... d4 {[%clk 0:02:55.6]} 5. O-O {[%clk 0:03:01.2]} 5...
c5 {[%clk 0:02:56.2]} 6. b4 {[%clk 0:02:59.4]} 6... cxb4 {[%clk 0:02:55]} 7. a3
{[%clk 0:02:59.6]} 7... bxa3 {[%clk 0:02:54.9]} 8. d3 {[%clk 0:02:59.9]} 8...
Nc6 {[%clk 0:02:54.4]} 9. Qa4 {[%clk 0:02:57.9]} 9... Bd7 {[%clk 0:02:51.5]} 10.
Bxa3 {[%clk 0:02:46.8]} 10... Be7 {[%clk 0:02:42.6]} 11. Qb3 {[%clk 0:02:17.4]}
11... b6 {[%clk 0:02:40]} 12. Qb2 {[%clk 0:02:15.9]} 12... Bxa3 {[%clk
0:02:23.6]} 13. Nxa3 {[%clk 0:02:13.6]} 13... e5 {[%clk 0:02:21.8]} 14. e3
{[%clk 0:02:08.5]} 14... dxe3 {[%clk 0:02:14.7]} 15. fxe3 {[%clk 0:02:06.4]}
15... Qe7 {[%clk 0:02:11]} 16. Nxe5 {[%clk 0:02:02.7]} 16... Nxe5 {[%clk
0:01:48.9]} 17. Bxa8 {[%clk 0:02:01.8]} 17... Nxd3 {[%clk 0:01:47.7]} 18. Qd4
{[%clk 0:02:01.5]} 18... O-O {[%clk 0:01:47.3]} 19. Bg2 {[%clk 0:01:27.6]} 19...
Nc5 {[%clk 0:01:42.2]} 20. Rad1 {[%clk 0:01:20.9]} 20... Bg4 {[%clk 0:01:39.9]}
21. Rde1 {[%clk 0:01:11.3]} 21... Rd8 {[%clk 0:01:32]} 22. Qa1 {[%clk
0:01:10.1]} 22... Nd3 {[%clk 0:01:27.1]} 23. Nb5 {[%clk 0:00:56.5]} 23... Nxe1
{[%clk 0:01:02.1]} 24. Rxe1 {[%clk 0:00:57.4]} 24... h5 {[%clk 0:00:58.1]} 25.
Qxa7 {[%clk 0:00:54.5]} 25... Qb4 {[%clk 0:00:57.2]} 26. Rf1 {[%clk 0:00:20]}
26... Qc5 {[%clk 0:00:48]} 27. Nd4 {[%clk 0:00:19.7]} 27... Re8 {[%clk
0:00:36.8]} 28. h3 {[%clk 0:00:19.1]} 28... Bc8 {[%clk 0:00:30.7]} 29. Qa3
{[%clk 0:00:18.2]} 29... Qxa3 {[%clk 0:00:29.8]} 30. Nc2 {[%clk 0:00:18.1]}
30... Qd3 {[%clk 0:00:29.2]} 0-1